fUST/lending_fUST_20250427
["ID","MTS","AMOUNT","RATE_DAILY","PERIOD"]
[359167520,1745765433316,-500.0,0.00018696,2]
[359167521,1745765433325,-500.0,0.00018696,2]
[359167522,1745765433486,-500.0,0.00018696,2]
[359167523,1745765433535,-500.0,0.00018696,2]
[359167524,1745765433545,-500.0,0.00018696,2]
[359167525,1745765433554,-501.3554026,0.00018696,2]
[359167526,1745765433565,-513.96070542,0.00018696,2]
[359167527,1745765433574,-500.0,0.00018696,2]
[359167528,1745765433584,-500.0,0.00018696,2]
[359167529,1745765433594,-500.0,0.00018696,2]
[359167530,1745765433603,-1000.0,0.00018696,2]
[359167531,1745765433613,-501.38540952,0.00018696,2]
[359167532,1745765433622,-505.89638131,0.00018696,2]
[359167533,1745765433632,-500.0,0.00018696,2]
[359167534,1745765433641,-500.0,0.00018696,2]
[359167535,1745765433650,-500.0,0.00018696,2]
[359167536,1745765433660,-500.0,0.00018696,2]
[359167537,1745765433669,-500.0,0.00018696,2]
[359167538,1745765433678,-500.0,0.00018696,2]
[359167539,1745765433688,-500.0,0.00018696,2]
[359167540,1745765433699,-504.40342907,0.00018696,2]
[359167541,1745765433709,-500.0,0.00018696,2]
[359167542,1745765433718,-500.0,0.00018696,2]
[359167543,1745765433727,-510.96321179,0.00018696,2]
[359167544,1745765433737,-500.0,0.00018696,2]
[359167545,1745765433748,-500.0,0.00018696,2]
[359167546,1745765433759,-500.0,0.00018696,2]
[359167547,1745765433768,-500.0,0.00018696,2]
[359167548,1745765433779,-500.0,0.00018696,2]
[359167549,1745765433788,-500.0,0.00018696,2]
[359167550,1745765433799,-500.0,0.00018696,2]
[359167551,1745765433808,-201.52794115,0.00018696,2]
[359167552,1745765433817,-500.0,0.00018696,2]
[359167553,1745765433828,-500.0,0.00018696,2]
[359167554,1745765433838,-500.0,0.00018696,2]
[359167555,1745765433847,-500.0,0.00018696,2]
[359167556,1745765433856,-500.0,0.00018696,2]
[359167557,1745765433866,-500.0,0.00018696,2]
[359167558,1745765433875,-500.0,0.00018696,2]
[359167559,1745765433884,-500.0,0.00018696,2]
[359167560,1745765433894,-500.0,0.00018696,2]
[359167561,1745765433903,-500.0,0.00018696,2]
[359167562,1745765433913,-500.0,0.00018696,2]
[359167563,1745765433922,-500.0,0.00018696,2]
[359167564,1745765433932,-500.0,0.00018696,2]
[359167565,1745765433941,-500.0,0.00018696,2]
[359167566,1745765433952,-500.0,0.00018696,2]
[359167567,1745765433961,-500.0,0.00018696,2]
[359167568,1745765433970,-500.0,0.00018696,2]
[359167569,1745765433980,-353.65622271,0.00018696,2]
[359167570,1745765433989,-503.72669785,0.00018696,2]
[359167571,1745765433998,-500.0,0.00018696,2]
[359167572,1745765434007,-500.0,0.00018696,2]
[359167573,1745765434017,-500.0,0.00018696,2]
[359167574,1745765434026,-500.0,0.00018696,2]
[359167575,1745765434035,-500.0,0.00018696,2]
[359167576,1745765434044,-500.0,0.00018696,2]
[359167577,1745765434053,-500.0,0.00018696,2]
[359167578,1745765434063,-500.0,0.00018696,2]
[359167579,1745765434072,-500.0,0.00018696,2]
[359167580,1745765434083,-500.0,0.00018696,2]
[359167581,1745765434092,-500.0,0.00018696,2]
[359167582,1745765434101,-500.0,0.00018696,2]
[359167583,1745765434110,-500.0,0.00018696,2]
[359167584,1745765434120,-500.0,0.00018696,2]
[359167585,1745765434129,-501.09344392,0.00018696,2]
[359167586,1745765434138,-500.88991179,0.00018696,2]
[359167587,1745765434148,-400.0,0.00018696,2]
[359167588,1745765434157,-501.01811364,0.00018696,2]
[359167589,1745765434167,-500.0,0.00018696,2]
[359167590,1745765434176,-500.0,0.00018696,2]
[359167591,1745765434185,-501.17293242,0.00018696,2]
[359167592,1745765434194,-500.0,0.00018696,2]
[359167593,1745765434205,-500.0,0.00018696,2]
[359167594,1745765434214,-442.21153184,0.00018696,2]
[359167595,1745765434224,-500.0,0.00018696,2]
[359167596,1745765434233,-524.78803199,0.00018696,2]
[359167597,1745765434242,-500.0,0.00018696,2]
[359167598,1745765434251,-515.58108086,0.00018696,2]
[359167599,1745765434268,-500.0,0.00018696,2]
[359167600,1745765434280,-502.92322311,0.00018696,2]
[359167601,1745765434290,-500.0,0.00018696,2]
[359167602,1745765434300,-500.0,0.00018696,2]
[359167603,1745765434310,-500.0,0.00018696,2]
[359167604,1745765434320,-500.0,0.00018696,2]
[359167605,1745765434331,-500.0,0.00018696,2]
[359167606,1745765434341,-25204.7689779,0.00018697,2]
[359167607,1745765434351,-500.0,0.000187,2]
[359167608,1745765434361,-500.0,0.000187,2]
[359167609,1745765434371,-588.19778783,0.000187,2]
[359167610,1745765434381,-500.0,0.000187,2]
[359167611,1745765434391,-500.0,0.000187,2]
[359167612,1745765434401,-392.28262339,0.000187,2]
[359167613,1745765434411,-500.0,0.000187,2]
[359167614,1745765434421,-500.0,0.000187,2]
[359167615,1745765434431,-235.961928,0.00018856,2]
[359167616,1745765434441,-302.4747634,0.00018904,2]
[359167617,1745765434452,-200.89,0.0001897,2]
[359167618,1745765434462,-300.0,0.00019178,2]
[359167619,1745765434471,-302.4747634,0.00019208,2]
[359167620,1745765434481,-152.0,0.00019305,2]
[359167621,1745765434492,-302.4747634,0.00019512,2]
[359167622,1745765434501,-160.0,0.00019673,2]
[359167623,1745765434512,-840.47993636,0.00019673,2]
[359167624,1745765434522,-160.0,0.00019676,2]
[359167625,1745765434533,-421.1409203,0.00019676,2]
[359167626,1745765434543,-160.0,0.00019676,2]
[359167627,1745765434553,-500.0,0.00019702,2]
[359167628,1745765434563,-500.0,0.00019702,2]
[359167629,1745765434575,-400.0,0.00019702,2]
[359167630,1745765434585,-500.0,0.00019702,2]
[359167631,1745765434595,-500.0,0.00019702,2]
[359167632,1745765434605,-500.0,0.00019702,2]
[359167633,1745765434615,-500.0,0.00019702,2]
[359167634,1745765434625,-500.0,0.00019702,2]
[359167635,1745765434634,-500.0,0.00019702,2]
[359167636,1745765434644,-500.0,0.00019702,2]
[359167637,1745765434654,-500.0,0.00019702,2]
[359167638,1745765434664,-501.01614136,0.00019702,2]
[359167639,1745765434673,-400.0,0.00019702,2]
[359167640,1745765434683,-500.0,0.00019702,2]
[359167641,1745765434693,-500.0,0.00019702,2]
[359167642,1745765434703,-500.0,0.00019702,2]
[359167643,1745765434713,-500.0,0.00019702,2]
[359167644,1745765434722,-500.0,0.00019702,2]
[359167645,1745765434733,-500.0,0.00019702,2]
[359167646,1745765434742,-500.0,0.00019702,2]
[359167647,1745765434754,-500.0,0.00019702,2]
[359167648,1745765434763,-500.0,0.00019702,2]
[359167649,1745765434773,-400.0,0.00019702,2]
[359167650,1745765434782,-500.0,0.00019702,2]
[359167651,1745765434793,-500.0,0.00019702,2]
[359167652,1745765434802,-500.0,0.00019702,2]
[359167653,1745765434812,-500.0,0.00019702,2]
[359167654,1745765434822,-500.0,0.00019702,2]
[359167655,1745765434832,-500.0,0.00019702,2]
[359167656,1745765434841,-500.0,0.00019702,2]
[359167657,1745765434851,-500.0,0.00019702,2]
[359167658,1745765434860,-235.18299261,0.00019702,2]
[359167659,1745765434869,-500.0,0.00019702,2]
[359167660,1745765434878,-500.0,0.00019702,2]
[359167661,1745765434888,-500.0,0.00019702,2]
[359167662,1745765434897,-400.0,0.00019702,2]
[359167663,1745765434907,-500.0,0.00019702,2]
[359167664,1745765434918,-501.36743639,0.00019702,2]
[359167665,1745765434928,-500.0,0.00019702,2]
[359167666,1745765434938,-500.0,0.00019702,2]
[359167667,1745765434948,-500.0,0.00019702,2]
[359167668,1745765434960,-500.0,0.00019702,2]
[359167669,1745765434970,-500.0,0.00019702,2]
[359167670,1745765434979,-500.0,0.00019702,2]
[359167671,1745765434989,-500.0,0.00019702,2]
[359167672,1745765434998,-500.0,0.00019702,2]
[359167673,1745765435009,-182.14185125,0.00019702,2]
[359167674,1745765435019,-400.0,0.00019702,2]
[359167675,1745765435030,-400.0,0.00019702,2]
[359167676,1745765435042,-400.0,0.00019702,2]
[359167677,1745765435051,-500.0,0.00019702,2]
[359167678,1745765435061,-400.0,0.00019702,2]
[359167679,1745765435071,-500.0,0.00019702,2]
[359167680,1745765435080,-500.0,0.00019702,2]
[359167681,1745765435090,-500.0,0.00019702,2]
[359167682,1745765435100,-21059.12354069,0.00019704,2]
[359167683,1745765435109,-151.0,0.00019705,2]
[359167684,1745765435119,-249.45428799,0.00019705,2]
[359167685,1745765435128,-151.0,0.00019705,2]
[359167686,1745765435137,-207.4,0.00019705,2]
[359167687,1745765435147,-500.0,0.00019716,2]
[359167688,1745765435160,-500.0,0.00019716,2]
[359167689,1745765435170,-86399.57671544,0.00019717,2]
[359167690,1745765435180,-158.682982,0.00019717,2]
[359167691,1745765435190,-151.0,0.000198,2]
[359167692,1745765435199,-38933.03711455,0.00019814,2]
[359167693,1745765435209,-302.4747634,0.00019816,2]
[359167694,1745765435219,-159.54629284,0.00019856,2]
[359167695,1745765435228,-500.0,0.00019856,2]
[359167696,1745765435238,-500.0,0.00019856,2]
[359167697,1745765435247,-500.0,0.00019856,2]
[359167698,1745765435257,-500.0,0.00019856,2]
[359167699,1745765435267,-500.0,0.00019856,2]
[359167700,1745765435276,-500.0,0.00019856,2]
[359167701,1745765435286,-500.0,0.00019856,2]
[359167702,1745765435295,-500.0,0.00019856,2]
[359167703,1745765435305,-500.0,0.00019856,2]
[359167704,1745765435315,-500.0,0.00019856,2]
[359167705,1745765435325,-500.0,0.00019856,2]
[359167706,1745765435334,-500.69524824,0.00019856,2]
[359167707,1745765435344,-500.0,0.00019856,2]
[359167708,1745765435353,-500.0,0.00019856,2]
[359167709,1745765435363,-500.0,0.00019856,2]
[359167710,1745765435372,-500.0,0.00019856,2]
[359167711,1745765435381,-507.13101537,0.00019856,2]
[359167712,1745765435390,-500.0,0.00019856,2]
[359167713,1745765435400,-500.0,0.00019856,2]
[359167714,1745765435409,-500.0,0.00019856,2]
[359167715,1745765435419,-500.0,0.00019856,2]
[359167716,1745765435429,-500.0,0.00019856,2]
[359167717,1745765435439,-504.30776664,0.00019856,2]
[359167718,1745765435448,-500.0,0.00019856,2]
[359167719,1745765435459,-501.40972087,0.00019856,2]
[359167720,1745765435468,-500.0,0.00019856,2]
[359167721,1745765435478,-500.0,0.00019856,2]
[359167722,1745765435488,-500.0,0.00019856,2]
[359167723,1745765435497,-500.0,0.00019856,2]
[359167724,1745765435507,-500.0,0.00019856,2]
[359167725,1745765435516,-500.0,0.00019856,2]
[359167726,1745765435526,-500.0,0.00019856,2]
[359167727,1745765435536,-500.0,0.00019856,2]
[359167728,1745765435545,-500.0,0.00019856,2]
[359167729,1745765435555,-359.4538353,0.00019856,2]
[359167730,1745765435564,-500.0,0.00019856,2]
[359167731,1745765435574,-501.4554595,0.00019856,2]
[359167732,1745765435583,-500.0,0.00019856,2]
[359167733,1745765435594,-500.0,0.00019856,2]
[359167734,1745765435604,-500.0,0.00019856,2]
[359167735,1745765435614,-500.0,0.00019856,2]
[359167736,1745765435623,-500.0,0.00019856,2]
[359167737,1745765435634,-500.0,0.00019856,2]
[359167738,1745765435643,-500.0,0.00019856,2]
[359167739,1745765435654,-530.68259827,0.00019856,2]
[359167740,1745765435663,-500.0,0.00019856,2]
[359167741,1745765435675,-351.22441916,0.00019856,2]
[359167742,1745765435685,-500.0,0.00019856,2]
[359167743,1745765435695,-500.0,0.00019856,2]
[359167744,1745765435704,-500.0,0.00019856,2]
[359167745,1745765435714,-505.04982139,0.00019856,2]
[359167746,1745765435723,-500.0,0.00019856,2]
[359167747,1745765435733,-500.0,0.00019856,2]
[359167748,1745765435743,-500.0,0.00019856,2]
[359167749,1745765435757,-500.0,0.00019856,2]
[359167750,1745765435767,-500.0,0.00019856,2]
[359167751,1745765435776,-500.0,0.00019856,2]
[359167752,1745765435786,-504.62522144,0.00019856,2]
[359167753,1745765435797,-500.0,0.00019856,2]
[359167754,1745765435809,-500.0,0.00019856,2]
[359167755,1745765435820,-500.0,0.00019856,2]
[359167756,1745765435830,-500.0,0.00019856,2]
[359167757,1745765435839,-500.0,0.00019856,2]
[359167758,1745765435849,-500.0,0.00019856,2]
[359167759,1745765435861,-500.0,0.00019856,2]
[359167760,1745765435870,-500.0,0.00019856,2]
[359167761,1745765435880,-500.0,0.00019856,2]
[359167762,1745765435889,-500.0,0.00019858,2]
[359167763,1745765435898,-500.0,0.00019858,2]
[359167764,1745765435908,-500.0,0.00019858,2]
[359167765,1745765435919,-500.0,0.00019858,2]
[359167766,1745765435929,-500.0,0.00019858,2]
[359167767,1745765435939,-500.0,0.00019858,2]
[359167768,1745765435951,-500.0,0.00019858,2]
[359167769,1745765435959,-500.0,0.00019858,2]
[359167770,1745765435968,-500.0,0.00019858,2]
[359167771,1745765435979,-500.0,0.00019858,2]
[359167772,1745765435989,-500.0,0.00019858,2]
[359167773,1745765436000,-500.0,0.00019858,2]
[359167774,1745765436010,-500.0,0.00019858,2]
[359167775,1745765436019,-400.0,0.00019858,2]
[359167776,1745765436029,-400.0,0.00019858,2]
[359167777,1745765436039,-500.0,0.00019858,2]
[359167778,1745765436049,-500.0,0.00019858,2]
[359167779,1745765436059,-500.0,0.00019858,2]
[359167780,1745765436070,-500.0,0.00019858,2]
[359167781,1745765436080,-500.0,0.00019858,2]
[359167782,1745765436092,-500.0,0.00019858,2]
[359167783,1745765436105,-1000.0,0.00019858,2]
[359167784,1745765436116,-500.0,0.00019858,2]
[359167785,1745765436126,-500.0,0.00019858,2]
[359167786,1745765436135,-500.0,0.00019858,2]
[359167787,1745765436146,-500.0,0.00019858,2]
[359167788,1745765436158,-500.0,0.00019858,2]
[359167789,1745765436168,-500.0,0.00019858,2]
[359167790,1745765436177,-400.0,0.00019858,2]
[359167791,1745765436187,-500.0,0.00019858,2]
[359167792,1745765436196,-295.65733479,0.00019858,2]
[359167793,1745765436205,-2911.57,0.00019858,2]
[359167794,1745765436214,-500.0,0.00019858,2]
[359167795,1745765436223,-500.0,0.00019858,2]
[359167796,1745765436233,-500.0,0.00019858,2]
[359167797,1745765436242,-500.0,0.00019858,2]
[359167798,1745765436251,-500.0,0.00019858,2]
[359167799,1745765436260,-500.0,0.00019858,2]
[359167800,1745765436269,-500.0,0.00019858,2]
[359167801,1745765436278,-500.0,0.00019858,2]
[359167802,1745765436288,-526.38953586,0.00019858,2]
[359167803,1745765436297,-500.0,0.00019858,2]
[359167804,1745765436306,-224.17410845,0.00019858,2]
[359167805,1745765436326,-275.82589155,0.00019858,2]
[359167806,1745765436335,-500.0,0.00019858,2]
[359167807,1745765436345,-500.0,0.00019858,2]
[359167808,1745765436356,-500.0,0.00019858,2]
[359167809,1745765436366,-400.0,0.00019858,2]
[359167810,1745765436375,-151.0,0.000199,2]
[359167811,1745765436385,-151.0,0.000199,2]
[359167812,1745765436395,-151.0,0.000199,2]
[359167813,1745765436404,-151.0,0.000199,2]
[359167814,1745765436413,-151.0,0.000199,2]
[359167815,1745765436423,-151.0,0.000199,2]
[359167816,1745765436432,-151.0,0.000199,2]
[359167817,1745765436442,-151.0,0.000199,2]
[359167818,1745765436451,-676.72788963,0.000199,2]
[359167819,1745765436460,-500.0,0.00019907,2]
[359167820,1745765436469,-500.0,0.00019907,2]
[359167821,1745765436479,-500.0,0.00019907,2]
[359167822,1745765436488,-500.0,0.00019907,2]
[359167823,1745765436498,-500.0,0.00019907,2]
[359167824,1745765436507,-1408.86222341,0.0001991,2]
[359167830,1745765438505,-206.84620563,0.00018695,2]
[359167831,1745765438514,-138.80823198,0.0001991,2]
[359167832,1745765438597,-1089.87739023,0.0001991,2]
[359167833,1745765438607,-1556.65863507,0.0001991,3]
[359167834,1745765438619,-9967.44895691,0.0001991,3]
[359167835,1745765438628,-151.0,0.0001991,2]
[359167836,1745765438637,-151.0,0.0001991,2]
[359167837,1745765438646,-151.0,0.0001991,2]
[359167839,1745765438655,-151.0,0.0001991,2]
[359167840,1745765438664,-151.0,0.0001991,2]
[359167841,1745765438672,-151.0,0.0001991,2]
[359167842,1745765438681,-151.0,0.0001991,2]
[359167843,1745765438690,-151.0,0.0001991,2]
[359167844,1745765438699,-151.0,0.0001991,2]
[359167845,1745765438708,-151.0,0.0001991,2]
[359167846,1745765438717,-26439.96985888,0.0001991,2]
[359167847,1745765438728,-11995.61204541,0.0001991,2]
[359167848,1745765438739,-1863.99763445,0.0001991,2]
[359167849,1745765438753,-21369.2468635,0.0001991,2]
[359167850,1745765441137,-461.69512936,0.0001991,2]
[359167866,1745765443857,-486.52831099,0.0001991,2]
[359167867,1745765443869,-37382.95015741,0.0001991,2]
[359167868,1745765443879,-160.0,0.00019916,3]
[359167869,1745765443888,-840.47993636,0.00019916,3]
[359167870,1745765443898,-32600.66845287,0.00019916,2]
[359167871,1745765443909,-5344.1772408,0.00019916,2]
[359167877,1745765446566,-284.262,0.00019916,2]
[359167878,1745765446577,-789.8158653,0.00019916,2]
[359167879,1745765446673,-500.0,0.00018695,2]
[359167880,1745765446687,-551.75828276,0.00018695,2]
[359167881,1745765446696,-3975.71784516,0.00019916,2]
[359167882,1745765446708,-203156.067302,0.00019916,2]
[359167890,1745766193181,970.0,0.00021,10]
[359167895,1745766360386,261.37010977,0.00025,30]
[359167897,1745766536119,467.0,0.00025,30]
[359167933,1745766632672,-160.0,0.00018575,2]
[359167935,1745766632682,-840.47993636,0.00018575,2]
[359167936,1745766632692,-160.0,0.00018575,2]
[359167937,1745766632702,-421.1409203,0.00018576,2]
[359167939,1745766632711,-300.0,0.00018593,2]
[359167941,1745766632723,-850.0,0.00018593,2]
[359167943,1745766632732,-500.0,0.00018594,2]
[359167944,1745766632742,-500.0,0.00018594,2]
[359167945,1745766632754,-500.0,0.00018594,2]
[359167946,1745766632763,-617.27650429,0.00018594,2]
[359167947,1745766632772,-500.0,0.00018594,2]
[359167948,1745766632781,-386.23079794,0.00018595,2]
[359167949,1745766632791,-500.0,0.00018595,2]
[359167950,1745766632801,-324.23453393,0.00018595,2]
[359167951,1745766632810,-255.8636791,0.00018595,2]
[359167952,1745766632820,-400.0,0.00018595,2]
[359167953,1745766632829,-210.88164109,0.00018595,2]
[359167954,1745766632839,-210.50743508,0.00018595,2]
[359167955,1745766632848,-255.28067953,0.00018595,2]
[359167956,1745766632858,-500.0,0.00018595,2]
[359167957,1745766632868,-500.0,0.00018595,2]
[359167958,1745766632877,-500.0,0.00018595,2]
[359167959,1745766632887,-500.0,0.00018595,2]
[359167960,1745766632897,-400.0,0.00018595,2]
[359167961,1745766632907,-117.93210718,0.00018595,2]
[359167962,1745766632919,-382.06789282,0.00018595,2]
[359167963,1745766632929,-500.0,0.00018595,2]
[359167964,1745766632938,-500.0,0.00018595,2]
[359167965,1745766632948,-500.0,0.00018595,2]
[359167966,1745766632958,-500.80169088,0.00018595,2]
[359167967,1745766632969,-500.0,0.00018595,2]
[359167968,1745766632979,-500.0,0.00018595,2]
[359167969,1745766632988,-500.0,0.00018595,2]
[359167970,1745766632998,-500.0,0.00018595,2]
[359167971,1745766633009,-500.0,0.00018595,2]
[359167972,1745766633018,-500.0,0.00018595,2]
[359167973,1745766633028,-500.0,0.00018595,2]
[359167974,1745766633038,-500.0,0.00018595,2]
[359167975,1745766633047,-500.0,0.00018595,2]
[359167976,1745766633056,-500.0,0.00018595,2]
[359167977,1745766633066,-500.0,0.00018595,2]
[359167978,1745766633076,-500.0,0.00018595,2]
[359167979,1745766633085,-500.0,0.00018595,2]
[359167980,1745766633094,-500.0,0.00018595,2]
[359167981,1745766633104,-500.0,0.00018595,2]
[359167982,1745766633114,-259.23005043,0.00018595,2]
[359167983,1745766633126,-501.3577796,0.00018595,2]
[359167984,1745766633309,-172.34542243,0.00018595,2]
[359167985,1745766633320,-400.0,0.00018595,2]
[359167986,1745766633330,-41790.24967653,0.00018596,2]
[359168043,1745766641056,-500.0,0.00018595,2]
[359168044,1745766641067,-93.90122973,0.00018596,2]
[359168102,1745766644080,-14355.68920248,0.00018596,2]
[359168114,1745766646760,-324.25059008,0.00018595,2]
[359168116,1745766646769,-123594.08409485,0.00018596,2]
[359168118,1745766646779,-500.0,0.00018694,2]
[359168120,1745766646788,-500.0,0.00018694,2]
[359168121,1745766646797,-400.0,0.00018695,2]
[359168123,1745766646807,-2790.25,0.00018695,2]
[359168125,1745766646816,-219.95421216,0.00018696,2]
[359168128,1745766646825,-500.0,0.00018696,2]
[359168129,1745766646835,-400.0,0.00018869,2]
[359168131,1745766646844,-335.381935,0.00018869,2]
[359168133,1745766646854,-217.46,0.00018969,2]
[359168134,1745766646864,-2790.25,0.00018969,2]
[359168135,1745766646873,-400.0,0.00019143,2]
[359168136,1745766646882,-2790.25,0.00019243,2]
[359168137,1745766646891,-400.0,0.00019417,2]
[359168138,1745766646900,-2790.25,0.00019517,2]
[359168139,1745766646910,-168.7415877,0.000196,2]
[359168140,1745766646919,-229.91,0.00019691,2]
[359168141,1745766646928,-500.0,0.00019702,2]
[359168142,1745766646937,-500.0,0.00019702,2]
[359168143,1745766646946,-2790.25,0.00019791,2]
[359168144,1745766646955,-3987.76904844,0.000199,2]
[359168513,1745767831772,-6523.9997029,0.00017475,2]
[359168514,1745767831782,-160.0,0.00017636,2]
[359168515,1745767831792,-160.0,0.00017636,2]
[359168516,1745767831802,-160.0,0.00017997,2]
[359168517,1745767831811,-160.0,0.00017998,2]
[359168518,1745767831820,-300.0,0.00017999,2]
[359168519,1745767831828,-300.0,0.00017999,2]
[359168520,1745767831838,-2701.0,0.00018,2]
[359168521,1745767831847,-500.0,0.00018391,2]
[359168522,1745767831855,-500.0,0.00018391,2]
[359168523,1745767831864,-500.0,0.00018391,2]
[359168525,1745767831874,-500.0,0.00018391,2]
[359168526,1745767831883,-539.92498618,0.00018391,2]
[359168528,1745767831892,-500.0,0.00018391,2]
[359168529,1745767831901,-500.0,0.00018391,2]
[359168530,1745767831910,-164.37806149,0.00018457,2]
[359168532,1745767831920,-840.47993636,0.00018458,2]
[359168533,1745767831929,-160.0,0.00018458,2]
[359168535,1745767831938,-421.1409203,0.00018458,2]
[359168537,1745767831947,-160.0,0.00018458,2]
[359168538,1745767831957,-500.0,0.00018472,2]
[359168540,1745767831967,-500.0,0.00018472,2]
[359168541,1745767831976,-500.0,0.00018472,2]
[359168542,1745767831986,-400.0,0.00018472,2]
[359168544,1745767831997,-400.0,0.00018472,2]
[359168546,1745767832006,-179.72142484,0.00018472,2]
[359168548,1745767832015,-500.0,0.00018472,2]
[359168550,1745767832025,-400.0,0.00018472,2]
[359168552,1745767832034,-500.0,0.00018472,2]
[359168553,1745767832043,-400.0,0.00018472,2]
[359168555,1745767832053,-400.0,0.00018472,2]
[359168557,1745767832063,-500.0,0.00018472,2]
[359168559,1745767832072,-400.0,0.00018472,2]
[359168561,1745767832082,-400.0,0.00018472,2]
[359168563,1745767832091,-519.84861304,0.00018473,2]
[359168565,1745767832100,-500.28340555,0.00018473,2]
[359168567,1745767832110,-500.0,0.00018473,2]
[359168569,1745767832119,-500.0,0.00018473,2]
[359168571,1745767832128,-378.63524468,0.00018473,2]
[359168573,1745767832137,-526.19308115,0.00018473,2]
[359168574,1745767832146,-500.0,0.00018473,2]
[359168575,1745767832155,-400.08867886,0.00018473,2]
[359168576,1745767832163,-500.0,0.00018473,2]
[359168577,1745767832172,-500.0,0.00018473,2]
[359168578,1745767832181,-500.0,0.00018473,2]
[359168579,1745767832190,-501.43373209,0.00018473,2]
[359168580,1745767832198,-500.0,0.00018473,2]
[359168581,1745767832207,-500.0,0.00018473,2]
[359168582,1745767832216,-500.0,0.00018473,2]
[359168583,1745767832225,-500.0,0.00018473,2]
[359168584,1745767832234,-500.0,0.00018473,2]
[359168585,1745767832243,-500.0,0.00018473,2]
[359168586,1745767832253,-500.0,0.00018473,2]
[359168587,1745767832262,-500.0,0.00018473,2]
[359168588,1745767832272,-500.0,0.00018473,2]
[359168589,1745767832281,-500.0,0.00018473,2]
[359168590,1745767832290,-311.48291134,0.00018473,2]
[359168591,1745767832300,-500.0,0.00018473,2]
[359168592,1745767832309,-442.21190879,0.00018473,2]
[359168593,1745767832318,-515.43856953,0.00018473,2]
[359168594,1745767832327,-500.0,0.00018473,2]
[359168595,1745767832336,-500.0,0.00018473,2]
[359168596,1745767832345,-500.0,0.00018473,2]
[359168597,1745767832355,-504.68052444,0.00018473,2]
[359168599,1745767832364,-500.0,0.00018473,2]
[359168601,1745767832373,-500.0,0.00018492,2]
[359168603,1745767832383,-500.0,0.00018492,2]
[359168605,1745767832392,-400.0,0.00018492,2]
[359168607,1745767832402,-1274.1,0.00018492,2]
[359168609,1745767832411,-501.53064043,0.00018492,2]
[359168610,1745767832422,-500.0,0.00018492,2]
[359168612,1745767832431,-500.0,0.00018492,2]
[359168614,1745767832441,-500.07680402,0.00018492,2]
[359168616,1745767832450,-500.0,0.00018492,2]
[359168618,1745767832460,-168.13218464,0.00018492,2]
[359168620,1745767832469,-500.0,0.00018492,2]
[359168622,1745767832479,-98.52434187,0.00018492,2]
[359168624,1745767832491,-417.9028279,0.00018492,2]
[359168626,1745767832500,-500.0,0.00018492,2]
[359168628,1745767832509,-500.0,0.00018492,2]
[359168630,1745767832519,-500.0,0.00018492,2]
[359168632,1745767832532,-452.96345903,0.00018492,2]
[359168635,1745767832544,-500.0,0.00018492,2]
[359168637,1745767832553,-500.0,0.00018492,2]
[359168639,1745767832562,-226.96417375,0.00018492,2]